fUSD/lending_fUSD_20240409
["ID","MTS","AMOUNT","RATE_DAILY","PERIOD"]
[321939082,1712643059515,-500.0,0.00021095,2]
[321939083,1712643059525,-500.0,0.00021095,2]
[321939084,1712643059534,-660.37,0.00021095,2]
[321939085,1712643059543,-181.53932336,0.00021095,2]
[321939086,1712643059553,-500.0,0.00021095,2]
[321939087,1712643059562,-500.0,0.00021095,2]
[321939088,1712643059572,-653.24,0.00021095,2]
[321939089,1712643059581,-801.82,0.00021095,2]
[321939090,1712643059590,-725.05,0.00021095,2]
[321939091,1712643059600,-170.28274547,0.00021095,2]
[321939092,1712643059609,-2652.08,0.00021095,2]
[321939093,1712643059619,-1213.92,0.00021095,2]
[321939094,1712643059628,-578.44037235,0.00021095,2]
[321939095,1712643059637,-500.0,0.00021095,2]
[321939096,1712643059646,-500.0,0.00021095,2]
[321939097,1712643059656,-500.0,0.00021095,2]
[321939098,1712643059666,-500.0,0.00021095,2]
[321939099,1712643059675,-271.41627204,0.00021095,2]
[321939100,1712643059684,-563.07,0.00021095,2]
[321939101,1712643059694,-500.0,0.00021095,2]
[321939102,1712643059704,-500.0,0.00021095,2]
[321939103,1712643059713,-1464.16,0.00021095,2]
[321939104,1712643059722,-500.0,0.00021095,2]
[321939105,1712643059732,-626.72,0.00021095,2]
[321939106,1712643059742,-988.03,0.00021095,2]
[321939107,1712643059751,-500.0,0.00021095,2]
[321939108,1712643059760,-500.0,0.00021095,2]
[321939109,1712643059770,-1312.01,0.00021095,2]
[321939110,1712643059779,-3363.77,0.00021095,2]
[321939111,1712643059788,-10876.36,0.00021095,2]
[321939112,1712643059797,-8298.03,0.00021095,2]
[321939113,1712643059806,-517.12818395,0.00021095,2]
[321939114,1712643059816,-1237.69,0.00021095,2]
[321939115,1712643059829,-500.0,0.00021095,2]
[321939116,1712643059838,-500.0,0.00021095,2]
[321939117,1712643059847,-601.78,0.00021095,2]
[321939118,1712643059857,-500.0,0.00021095,2]
[321939119,1712643059866,-500.0,0.00021095,2]
[321939120,1712643059876,-1515.58,0.00021095,2]
[321939121,1712643059886,-500.0,0.00021095,2]
[321939122,1712643059895,-199.32786475,0.00021095,2]
[321939123,1712643059907,-2636.55,0.00021095,2]
[321939124,1712643059916,-934.53,0.00021095,2]
[321939125,1712643059925,-3917.37,0.00021095,2]
[321939126,1712643059934,-1102.73,0.00021095,2]
[321939127,1712643059943,-671.25,0.00021095,2]
[321939128,1712643059953,-500.0,0.00021095,2]
[321939129,1712643059962,-1059.22,0.00021095,2]
[321939130,1712643059971,-1056.03,0.00021095,2]
[321939131,1712643059980,-500.0,0.00021095,2]
[321939132,1712643059989,-500.0,0.00021095,2]
[321939133,1712643059998,-1670.5,0.00021095,2]
[321939134,1712643060008,-500.0,0.00021095,2]
[321939135,1712643060017,-500.0,0.00021095,2]
[321939136,1712643060026,-500.0,0.00021095,2]
[321939137,1712643060036,-500.0,0.00021095,2]
[321939138,1712643060045,-1877.09,0.00021095,2]
[321939139,1712643060055,-500.0,0.00021095,2]
[321939140,1712643060064,-500.0,0.00021095,2]
[321939141,1712643060074,-500.0,0.00021095,2]
[321939142,1712643060084,-500.0,0.00021095,2]
[321939143,1712643060093,-1583.55,0.00021095,2]
[321939144,1712643060102,-508.72415993,0.00021095,2]
[321939145,1712643060111,-500.0,0.00021095,2]
[321939146,1712643060120,-2191.95,0.00021095,2]
[321939147,1712643060130,-500.0,0.00021095,2]
[321939148,1712643060139,-500.0,0.00021095,2]
[321939149,1712643060148,-500.0,0.00021095,2]
[321939150,1712643060158,-3204.4,0.00021095,2]
[321939151,1712643060167,-500.0,0.00021095,2]
[321939152,1712643060177,-500.0,0.00021095,2]
[321939153,1712643060186,-500.0,0.00021095,2]
[321939154,1712643060196,-826.42,0.00021095,2]
[321939155,1712643060205,-500.0,0.00021095,2]
[321939156,1712643060215,-388.51704749,0.00021095,2]
[321939157,1712643060225,-953.97,0.00021095,2]
[321939158,1712643060234,-500.0,0.00021095,2]
[321939159,1712643060244,-2300.79,0.00021095,2]
[321939160,1712643060254,-500.0,0.00021095,2]
[321939161,1712643060263,-500.0,0.00021095,2]
[321939162,1712643060273,-500.0,0.00021095,2]
[321939163,1712643060283,-500.0,0.00021095,2]
[321939164,1712643060294,-6729.67,0.00021095,2]
[321939165,1712643060303,-500.0,0.00021095,2]
[321939166,1712643060312,-1462.92,0.00021095,2]
[321939167,1712643060321,-564.06804838,0.00021095,2]
[321939168,1712643060332,-500.0,0.00021095,2]
[321939169,1712643060341,-1495.52,0.00021095,2]
[321939170,1712643060351,-500.0,0.00021095,2]
[321939171,1712643060361,-500.0,0.00021095,2]
[321939172,1712643060371,-515.13,0.00021095,2]
[321939173,1712643060380,-1343.57,0.00021095,2]
[321939174,1712643060389,-500.0,0.00021095,2]
[321939175,1712643060399,-500.0,0.00021095,2]
[321939176,1712643060408,-1486.1,0.00021095,2]
[321939177,1712643060418,-500.0,0.00021095,2]
[321939178,1712643060428,-12742.0,0.00021095,2]
[321939179,1712643060437,-2628.87,0.00021095,2]
[321939180,1712643060447,-586.29,0.00021095,2]
[321939181,1712643060456,-1516.9,0.00021095,2]
[321939182,1712643060465,-500.0,0.00021095,2]
[321939183,1712643060475,-1029.44,0.00021095,2]
[321939184,1712643060485,-121.82909406,0.00021095,2]
[321939185,1712643060506,-2129.47692,0.00021095,2]
[321939186,1712643060535,-1627.15398594,0.00021095,2]
[321939187,1712643060545,-500.0,0.00021095,2]
[321939188,1712643060555,-500.0,0.00021095,2]
[321939189,1712643060565,-1558.42,0.00021095,2]
[321939190,1712643060575,-59910.63,0.00021095,2]
[321939191,1712643060585,-500.0,0.00021095,2]
[321939192,1712643060594,-7853.13,0.00021095,2]
[321939193,1712643060604,-500.0,0.00021095,2]
[321939194,1712643060614,-500.0,0.00021095,2]
[321939195,1712643060624,-500.0,0.00021095,2]
[321939196,1712643060634,-889.49,0.00021095,2]
[321939197,1712643060644,-570.99,0.00021095,2]
[321939198,1712643060654,-11543.33,0.00021095,2]
[321939199,1712643060665,-1391.89,0.00021095,2]
[321939200,1712643060675,-5520.25,0.00021095,2]
[321939201,1712643060684,-500.0,0.00021095,2]
[321939202,1712643060694,-1485.39,0.00021095,2]
[321939203,1712643060704,-500.0,0.00021095,2]
[321939204,1712643060714,-500.0,0.00021095,2]
[321939205,1712643060724,-500.0,0.00021095,2]
[321939206,1712643060734,-517.75102001,0.00021095,2]
[321939207,1712643060744,-3272.63,0.00021095,2]
[321939208,1712643060754,-4833.44,0.00021095,2]
[321939209,1712643060763,-2618.06,0.00021095,2]
[321939210,1712643060773,-17793.17,0.00021095,2]
[321939211,1712643060782,-4546.31,0.00021095,2]
[321939212,1712643060791,-500.0,0.00021095,2]
[321939213,1712643060800,-500.0,0.00021095,2]
[321939214,1712643060810,-500.0,0.00021095,2]
[321939215,1712643060819,-500.0,0.00021095,2]
[321939216,1712643060831,-500.0,0.00021095,2]
[321939217,1712643060843,-500.0,0.00021095,2]
[321939218,1712643060852,-3469.06,0.00021095,2]
[321939219,1712643060861,-747.9,0.00021095,2]
[321939220,1712643060872,-500.0,0.00021095,2]
[321939221,1712643060881,-1690.36,0.00021095,2]
[321939222,1712643060890,-500.0,0.00021095,2]
[321939223,1712643060901,-500.0,0.00021095,2]
[321939224,1712643060910,-7252.1,0.00021095,2]
[321939225,1712643060919,-6697.34,0.00021095,2]
[321939226,1712643060930,-500.0,0.00021095,2]
[321939227,1712643060939,-11146.73,0.00021095,2]
[321939228,1712643060954,-500.0,0.00021095,2]
[321939229,1712643060963,-5019.66,0.00021095,2]
[321939230,1712643060972,-2335.8,0.00021095,2]
[321939231,1712643060982,-500.0,0.00021095,2]
[321939232,1712643060993,-992.39,0.00021095,2]
[321939233,1712643061003,-500.0,0.00021095,2]
[321939234,1712643061012,-500.0,0.00021095,2]
[321939235,1712643061022,-500.0,0.00021095,2]
[321939236,1712643061032,-500.0,0.00021095,2]
[321939237,1712643061042,-500.0,0.00021095,2]
[321939238,1712643061051,-500.0,0.00021095,2]
[321939239,1712643061060,-500.0,0.00021095,2]
[321939240,1712643061070,-500.0,0.00021095,2]
[321939241,1712643061079,-500.0,0.00021095,2]
[321939242,1712643061089,-500.0,0.00021095,2]
[321939243,1712643061099,-943.86,0.00021095,2]
[321939244,1712643061109,-1680.01,0.00021095,2]
[321939245,1712643061118,-500.0,0.00021095,2]
[321939246,1712643061128,-4882.77,0.00021095,2]
[321939247,1712643061138,-1436.97,0.00021095,2]
[321939248,1712643061147,-2257.5,0.00021095,2]
[321939249,1712643061157,-3150.47,0.00021095,2]
[321939250,1712643061166,-500.0,0.00021095,2]
[321939251,1712643061175,-558.42019069,0.00021095,2]
[321939252,1712643061184,-500.0,0.00021095,2]
[321939253,1712643061193,-500.0,0.00021095,2]
[321939254,1712643061203,-2589.96,0.00021095,2]
[321939255,1712643061214,-500.0,0.00021095,2]
[321939256,1712643061224,-500.0,0.00021095,2]
[321939257,1712643061234,-3650.95,0.00021095,2]
[321939258,1712643061243,-7111.32,0.00021095,2]
[321939259,1712643061253,-500.0,0.00021095,2]
[321939260,1712643061263,-1357.24,0.00021095,2]
[321939261,1712643061272,-1497.52,0.00021095,2]
[321939262,1712643061281,-500.0,0.00021095,2]
[321939263,1712643061291,-1913.1,0.00021095,2]
[321939264,1712643061300,-500.0,0.00021095,2]
[321939265,1712643061310,-602.49,0.00021095,2]
[321939266,1712643061319,-719.36,0.00021095,2]
[321939267,1712643061329,-500.0,0.00021095,2]
[321939268,1712643061340,-500.0,0.00021095,2]
[321939269,1712643061349,-2855.48,0.00021095,2]
[321939270,1712643061358,-3832.7,0.00021095,2]
[321939271,1712643061368,-500.0,0.00021095,2]
[321939272,1712643061377,-7044.62,0.00021095,2]
[321939273,1712643061387,-500.0,0.00021095,2]
[321939274,1712643061396,-7510.87,0.00021095,2]
[321939275,1712643061406,-500.0,0.00021095,2]
[321939276,1712643061416,-500.0,0.00021095,2]
[321939277,1712643061425,-500.0,0.00021095,2]
[321939278,1712643061435,-500.0,0.00021095,2]
[321939279,1712643061444,-500.0,0.00021095,2]
[321939280,1712643061454,-741.94,0.00021095,2]
[321939281,1712643061464,-1346.01,0.00021095,2]
[321939282,1712643061473,-500.0,0.00021095,2]
[321939283,1712643061483,-500.0,0.00021095,2]
[321939284,1712643061493,-500.0,0.00021095,2]
[321939285,1712643061503,-2120.94,0.00021095,2]
[321939286,1712643061512,-1998.26,0.00021095,2]
[321939287,1712643061522,-2671.42,0.00021095,2]
[321939288,1712643061531,-500.0,0.00021095,2]
[321939289,1712643061541,-1606.46,0.00021095,2]
[321939290,1712643061550,-500.0,0.00021095,2]
[321939291,1712643061559,-500.0,0.00021095,2]
[321939292,1712643061568,-24943.11,0.00021095,2]
[321939293,1712643061578,-500.0,0.00021095,2]
[321939294,1712643061587,-514.0519493,0.00021095,2]
[321939295,1712643061596,-518.81,0.00021095,2]
[321939296,1712643061606,-13371.33,0.00021095,2]
[321939297,1712643061918,-500.0,0.00021095,2]
[321939298,1712643061939,-904.59,0.00021095,2]
[321939299,1712643061949,-500.0,0.00021095,2]
[321939300,1712643061958,-1250.1,0.00021095,2]
[321939301,1712643061968,-500.0,0.00021095,2]
[321939302,1712643061978,-3352.74,0.00021095,2]
[321939303,1712643061989,-519.60188374,0.00021095,2]
[321939304,1712643062000,-500.0,0.00021095,2]
[321939305,1712643062011,-1109.95,0.00021095,2]
[321939306,1712643062021,-2969.11,0.00021095,2]
[321939307,1712643062030,-698.07,0.00021095,2]
[321939308,1712643062041,-500.0,0.00021095,2]
[321939309,1712643062050,-500.0,0.00021095,2]
[321939310,1712643062061,-992.34,0.00021095,2]
[321939311,1712643062071,-521.14578934,0.00021095,2]
[321939312,1712643062082,-2256.44,0.00021095,2]
[321939313,1712643062092,-4153.55,0.00021095,2]
[321939314,1712643062101,-500.0,0.00021095,2]
[321939315,1712643062111,-23165.91,0.00021095,2]
[321939316,1712643062120,-500.0,0.00021095,2]
[321939317,1712643062129,-679.44,0.00021095,2]
[321939318,1712643062139,-500.0,0.00021095,2]
[321939319,1712643062149,-500.0,0.00021095,2]
[321939320,1712643062159,-519.58651032,0.00021095,2]
[321939321,1712643062169,-500.0,0.00021095,2]
[321939322,1712643062178,-3642.99,0.00021095,2]
[321939323,1712643062187,-18680.66,0.00021095,2]
[321939324,1712643062197,-782.65,0.00021095,2]
[321939325,1712643062206,-1491.11,0.00021095,2]
[321939326,1712643062216,-500.0,0.00021095,2]
[321939327,1712643062226,-3775.36,0.00021095,2]
[321939328,1712643062235,-3829.45,0.00021095,2]
[321939329,1712643062245,-4472.88,0.00021095,2]
[321939330,1712643062254,-598.57,0.00021095,2]
[321939331,1712643062263,-918.73,0.00021095,2]
[321939332,1712643062272,-500.0,0.00021095,2]
[321939333,1712643062281,-522.4534169,0.00021095,2]
[321939334,1712643062291,-3649.25,0.00021095,2]
[321939335,1712643062300,-5741.92,0.00021095,2]
[321939336,1712643062309,-500.0,0.00021095,2]
[321939337,1712643062318,-500.0,0.00021095,2]
[321939338,1712643062328,-552.41,0.00021095,2]
[321939339,1712643062338,-577.31,0.00021095,2]
[321939340,1712643062348,-1389.29,0.00021095,2]
[321939341,1712643062358,-1390.3,0.00021095,2]
[321939342,1712643062368,-3380.41,0.00021095,2]
[321939343,1712643062378,-500.0,0.00021095,2]
[321939344,1712643062388,-3817.4,0.00021095,2]
[321939345,1712643062398,-869.16,0.00021095,2]
[321939346,1712643062407,-11005.16,0.00021095,2]
[321939347,1712643062417,-2164.95,0.00021095,2]
[321939348,1712643062427,-500.0,0.00021095,2]
[321939349,1712643062437,-1286.35,0.00021095,2]
[321939350,1712643062447,-1452.46,0.00021095,2]
[321939351,1712643062457,-500.0,0.00021095,2]
[321939352,1712643062466,-531.59876044,0.00021095,2]
[321939353,1712643062476,-3183.47,0.00021095,2]
[321939354,1712643062485,-520.15,0.00021095,2]
[321939355,1712643062495,-2323.98,0.00021095,2]
[321939356,1712643062505,-22818.47,0.00021095,2]
[321939357,1712643062514,-500.0,0.00021095,2]
[321939358,1712643062523,-500.0,0.00021095,2]
[321939359,1712643062533,-500.0,0.00021095,2]
[321939360,1712643062543,-500.0,0.00021095,2]
[321939361,1712643062552,-4330.46,0.00021095,2]
[321939362,1712643062562,-500.0,0.00021095,2]
[321939363,1712643062571,-500.0,0.00021095,2]
[321939364,1712643062580,-4663.39,0.00021095,2]
[321939365,1712643062590,-500.0,0.00021095,2]
[321939366,1712643062600,-500.0,0.00021095,2]
[321939367,1712643062609,-500.0,0.00021095,2]
[321939368,1712643062618,-797.78,0.00021095,2]
[321939369,1712643062628,-500.0,0.00021095,2]
[321939370,1712643062638,-518.61239936,0.00021095,2]
[321939371,1712643062648,-500.0,0.00021095,2]
[321939372,1712643062658,-556.74377467,0.00021095,2]
[321939373,1712643062668,-500.0,0.00021095,2]
[321939374,1712643062678,-500.0,0.00021095,2]
[321939375,1712643062687,-527.3456872,0.00021095,2]
[321939376,1712643062697,-10771.43,0.00021095,2]
[321939377,1712643062706,-500.0,0.00021095,2]
[321939378,1712643062717,-811.41,0.00021095,2]
[321939379,1712643062726,-1571.7,0.00021095,2]
[321939380,1712643062735,-500.0,0.00021095,2]
[321939381,1712643062744,-500.0,0.00021095,2]
[321939382,1712643062754,-1539.48,0.00021095,2]
[321939383,1712643062763,-500.0,0.00021095,2]
[321939384,1712643062772,-3558.95,0.00021095,2]
[321939385,1712643062781,-2161.38,0.00021095,2]
[321939386,1712643062790,-1833.91,0.00021095,2]
[321939387,1712643062800,-4432.37,0.00021095,2]
[321939388,1712643062809,-542.05,0.00021095,2]
[321939389,1712643062819,-500.0,0.00021095,2]
[321939390,1712643062831,-9997.19,0.00021095,2]
[321939391,1712643062841,-500.0,0.00021095,2]
[321939392,1712643062850,-1667.15,0.00021095,2]
[321939393,1712643062860,-4600.95,0.00021095,2]
[321939394,1712643062870,-901.58,0.00021095,2]
[321939395,1712643062879,-500.0,0.00021095,2]
[321939396,1712643062888,-500.0,0.00021095,2]
[321939397,1712643062898,-500.0,0.00021095,2]
[321939398,1712643062910,-4303.01,0.00021095,2]
[321939399,1712643062920,-565.75,0.00021095,2]
[321939400,1712643062929,-61878.54,0.00021095,2]
[321939401,1712643062939,-635.1,0.00021095,2]
[321939402,1712643062948,-1098.06,0.00021095,2]
[321939403,1712643062957,-500.0,0.00021095,2]
[321939404,1712643062966,-500.0,0.00021095,2]
[321939405,1712643062975,-500.0,0.00021095,2]
[321939406,1712643062984,-500.0,0.00021095,2]
[321939407,1712643062993,-8105.39,0.00021095,2]
[321939408,1712643063003,-1172.15,0.00021095,2]
[321939409,1712643063012,-500.0,0.00021095,2]
[321939410,1712643063021,-48595.4,0.00021095,2]
[321939411,1712643063030,-500.0,0.00021095,2]
[321939412,1712643063039,-500.0,0.00021095,2]
[321939413,1712643063048,-500.0,0.00021095,2]
[321939414,1712643063058,-8020.59,0.00021095,2]
[321939415,1712643063067,-671.82,0.00021095,2]
[321939416,1712643063076,-508.26974797,0.00021095,2]
[321939417,1712643063087,-1953.74,0.00021095,2]
[321939418,1712643063097,-500.0,0.00021095,2]
[321939419,1712643063106,-500.0,0.00021095,2]
[321939420,1712643063116,-1268.69,0.00021095,2]
[321939421,1712643063125,-500.0,0.00021095,2]
[321939422,1712643063134,-596.21,0.00021095,2]
[321939423,1712643063143,-3072.08,0.00021095,2]
[321939424,1712643063154,-500.0,0.00021095,2]
[321939425,1712643063163,-1482.99,0.00021095,2]
[321939426,1712643063173,-500.0,0.00021095,2]
[321939427,1712643063183,-2068.97,0.00021095,2]
[321939428,1712643063192,-500.0,0.00021095,2]
[321939429,1712643063202,-20315.21,0.00021095,2]
[321939430,1712643063211,-622.3,0.00021095,2]
[321939431,1712643063221,-2165.84,0.00021095,2]
[321939432,1712643063231,-4470.99,0.00021095,2]
[321939433,1712643063241,-3327.44,0.00021095,2]
[321939434,1712643063250,-713.15,0.00021095,2]
[321939435,1712643063259,-3598.6,0.00021095,2]
[321939436,1712643063269,-3271.02,0.00021095,2]
[321939437,1712643063278,-12092.42,0.00021095,2]
[321939438,1712643063287,-1853.39,0.00021095,2]
[321939439,1712643063296,-1483.83,0.00021095,2]
[321939440,1712643063305,-784.07,0.00021095,2]
[321939441,1712643063315,-715.6,0.00021095,2]
[321939442,1712643063324,-500.0,0.00021095,2]
[321939443,1712643063335,-594.6,0.00021095,2]
[321939444,1712643063344,-1990.03,0.00021095,2]
[321939445,1712643063355,-1942.13,0.00021095,2]
[321939446,1712643063365,-500.0,0.00021095,2]
[321939447,1712643063374,-500.0,0.00021095,2]
[321939448,1712643063383,-3855.9,0.00021095,2]
[321939449,1712643063393,-2320.05,0.00021095,2]
[321939450,1712643063402,-1421.87,0.00021095,2]
[321939451,1712643063412,-636.21,0.00021095,2]
[321939452,1712643063421,-500.0,0.00021095,2]
[321939453,1712643063431,-500.0,0.00021095,2]
[321939454,1712643063441,-4754.03,0.00021095,2]
[321939455,1712643063451,-500.0,0.00021095,2]
[321939456,1712643063460,-500.0,0.00021095,2]
[321939457,1712643063470,-503.29,0.00021095,2]
[321939458,1712643063479,-500.0,0.00021095,2]
[321939459,1712643063488,-4588.85,0.00021095,2]
[321939460,1712643063497,-1271.48,0.00021095,2]
[321939461,1712643063506,-500.0,0.00021095,2]
[321939462,1712643063516,-1640.17,0.00021095,2]
[321939463,1712643063525,-4148.77,0.00021095,2]
[321939464,1712643063534,-3550.97,0.00021095,2]
[321939465,1712643063543,-9310.45,0.00021095,2]
[321939466,1712643063553,-7330.14,0.00021095,2]
[321939467,1712643063562,-2434.74,0.00021095,2]
[321939468,1712643063571,-500.0,0.00021095,2]
[321939469,1712643063581,-740.38,0.00021095,2]
[321939470,1712643063590,-500.0,0.00021095,2]
[321939471,1712643063599,-3819.96,0.00021095,2]
[321939472,1712643063609,-2309.22,0.00021095,2]
[321939473,1712643063618,-500.0,0.00021095,2]
[321939474,1712643063627,-500.0,0.00021095,2]
[321939475,1712643063637,-500.0,0.00021095,2]
[321939476,1712643063646,-10727.44,0.00021095,2]
[321939477,1712643063656,-500.0,0.00021095,2]
[321939478,1712643063665,-500.0,0.00021095,2]
[321939479,1712643063674,-500.0,0.00021095,2]
[321939480,1712643063683,-4151.59,0.00021095,2]
[321939481,1712643063693,-4885.73,0.00021095,2]
[321939482,1712643063702,-500.0,0.00021095,2]
[321939483,1712643063711,-500.0,0.00021095,2]
[321939484,1712643063721,-500.0,0.00021095,2]
[321939485,1712643063730,-500.0,0.00021095,2]
[321939486,1712643063739,-500.0,0.00021095,2]
[321939487,1712643063749,-500.0,0.00021095,2]
[321939488,1712643063759,-500.0,0.00021095,2]
[321939489,1712643063768,-3558.34,0.00021095,2]
[321939490,1712643063778,-500.0,0.00021095,2]
[321939491,1712643063787,-29238.65,0.00021095,2]
[321939492,1712643063796,-503.71,0.00021095,2]
[321939493,1712643063805,-500.0,0.00021095,2]
[321939494,1712643063814,-2407.19,0.00021095,2]
[321939495,1712643063824,-500.0,0.00021095,2]
[321939496,1712643063838,-500.0,0.00021095,2]
[321939497,1712643063847,-2364.83,0.00021095,2]
[321939498,1712643063856,-500.0,0.00021095,2]
[321939499,1712643063865,-500.0,0.00021095,2]
[321939500,1712643063875,-500.0,0.00021095,2]
[321939501,1712643063884,-8182.19,0.00021095,2]
[321939502,1712643063893,-4148.63,0.00021095,2]
[321939503,1712643063904,-259.76791664,0.00021095,2]
[321939504,1712643063914,-676.65335,0.0002116,2]
[321939505,1712643063923,-963.31199133,0.00021186,2]
[321939506,1712643063932,-1135.31522102,0.00021254,2]
[321939507,1712643063941,-525.0,0.0002126,2]
[321939508,1712643063951,-526.0,0.0002126,2]
[321939509,1712643063960,-394.0,0.000213,2]
[321939510,1712643063978,-187.0,0.000213,4]
[321939511,1712643063989,-481.0,0.000213,4]
[321939512,1712643063999,-1000.0,0.000213,2]
[321939513,1712643064008,-963.31199133,0.00021305,2]
[321939514,1712643064018,-812.49007035,0.00021338,4]
[321939515,1712643064027,-206.59266165,0.00021368,2]
[321939516,1712643064037,-5827.91546642,0.00021368,2]
[321939517,1712643064046,-2381.0,0.00021369,2]
[321939518,1712643064055,-500.0,0.00021369,2]
[321939519,1712643064065,-500.0,0.00021369,2]
[321939520,1712643064074,-500.0,0.00021369,2]
[321939521,1712643064084,-500.0,0.00021369,2]
[321939522,1712643064094,-500.0,0.00021369,2]
[321939523,1712643064104,-500.0,0.00021369,2]
[321939524,1712643064115,-500.0,0.00021369,2]
[321939525,1712643064124,-500.0,0.00021369,2]
[321939526,1712643064134,-500.0,0.00021369,2]
[321939527,1712643064144,-500.0,0.00021369,2]
[321939528,1712643064153,-974.54,0.00021369,2]
[321939529,1712643064163,-500.0,0.00021369,2]
[321939530,1712643064173,-500.0,0.00021369,2]
[321939531,1712643064183,-500.0,0.00021369,2]
[321939532,1712643064192,-500.0,0.00021369,2]
[321939533,1712643064201,-500.0,0.00021369,2]
[321939534,1712643064211,-500.0,0.00021369,2]
[321939535,1712643064220,-500.0,0.00021369,2]
[321939536,1712643064229,-500.0,0.00021369,2]
[321939537,1712643064239,-500.0,0.00021369,2]
[321939538,1712643064248,-1232.25,0.00021369,2]
[321939539,1712643064267,-325.75288121,0.00021369,2]
[321939540,1712643064277,-500.0,0.00021369,2]
[321939541,1712643064286,-367.00945927,0.00021369,2]
[321939542,1712643064296,-500.0,0.00021369,2]
[321939543,1712643064305,-500.0,0.00021369,2]
[321939544,1712643064315,-500.0,0.00021369,2]
[321939545,1712643064324,-590.7,0.00021369,2]
[321939546,1712643064334,-500.0,0.00021369,2]
[321939547,1712643064343,-500.0,0.00021369,2]
[321939548,1712643064353,-500.0,0.00021369,2]
[321939549,1712643064362,-500.0,0.00021369,2]
[321939550,1712643064372,-922.41,0.00021369,2]
[321939551,1712643064381,-500.0,0.00021369,2]
[321939552,1712643064391,-500.0,0.00021369,2]
[321939553,1712643064400,-500.0,0.00021369,2]
[321939554,1712643064409,-500.0,0.00021369,2]
[321939555,1712643064419,-500.0,0.00021369,2]
[321939556,1712643064428,-500.0,0.00021369,2]
[321939557,1712643064437,-634.04,0.00021369,2]
[321939558,1712643064446,-500.0,0.00021369,2]
[321939559,1712643064455,-500.0,0.00021369,2]
[321939560,1712643064464,-206.83182449,0.00021369,2]
[321939561,1712643064473,-197.25808878,0.00021369,2]
[321939562,1712643064483,-500.0,0.00021369,2]
[321939563,1712643064492,-500.0,0.00021369,2]
[321939564,1712643064502,-1029.17,0.00021369,2]
[321939565,1712643064511,-500.0,0.00021369,2]
[321939566,1712643064520,-500.0,0.00021369,2]
[321939567,1712643064530,-500.0,0.00021369,2]
[321939568,1712643064539,-500.0,0.00021369,2]
[321939569,1712643064548,-500.0,0.00021369,2]
[321939570,1712643064557,-500.0,0.00021369,2]
[321939571,1712643064567,-500.0,0.00021369,2]
[321939572,1712643064576,-500.0,0.00021369,2]
[321939573,1712643064586,-500.0,0.00021369,2]
[321939574,1712643064595,-500.0,0.00021369,2]
[321939575,1712643064604,-500.0,0.00021369,2]
[321939576,1712643064614,-500.0,0.00021369,2]
[321939577,1712643064623,-500.0,0.00021369,2]
[321939578,1712643064633,-500.0,0.00021369,2]
[321939579,1712643064643,-625.26,0.00021369,2]
[321939580,1712643064652,-500.0,0.00021369,2]
[321939581,1712643064662,-500.0,0.00021369,2]